fUST/lending_fUST_20250923
["ID","MTS","AMOUNT","RATE_DAILY","PERIOD"]
[387189233,1758625609760,-156.41720064,0.00018028,2]
[387189234,1758625611377,-370.21205897,0.00018028,2]
[387189235,1758625614178,-267.1962302,0.00018028,2]
[387189236,1758625616380,-354.94665699,0.00018028,2]
[387189237,1758625618947,-300.35810533,0.00018028,2]
[387189238,1758625623378,-426.86045003,0.00018028,2]
[387189239,1758625626539,-167.97620612,0.00018028,2]
[387189240,1758625630352,-253.84824709,0.00018028,2]
[387189241,1758625632519,-257.45944923,0.00018028,2]
[387189242,1758625635128,-179.62081847,0.00018028,2]
[387189243,1758625639355,-152.0,0.00018028,2]
[387189244,1758625643792,-199.37744811,0.00018028,2]
[387189245,1758625646492,-197.70655228,0.00018028,2]
[387189246,1758625649759,-284.15601986,0.00018028,2]
[387189247,1758625654707,-353.79433954,0.00018028,2]
[387189248,1758625659153,-177.26966231,0.00018028,2]
[387189249,1758625663656,-201.83813483,0.00018028,2]
[387189250,1758625667348,-299.09,0.00018028,2]
[387189251,1758625669950,-246.5873796,0.00018028,2]
[387189252,1758625672427,-160.45985253,0.00018028,2]
[387189253,1758625674590,-282.86989264,0.00018028,2]
[387189254,1758625678547,-273.06201644,0.00018028,2]
[387189255,1758625685810,-152.0,0.00018028,2]
[387189256,1758625689021,-244.91601342,0.00018028,2]
[387189257,1758625689537,-549.30078896,0.00018028,2]
[387189276,1758625832308,-300.0,0.00018977,2]
[387189277,1758625832317,-300.0,0.00018977,2]
[387189279,1758625832327,-300.0,0.00018977,2]
[387189280,1758625832336,-300.0,0.00018977,2]
[387189281,1758625832466,-300.0,0.00018977,2]
[387189282,1758625832477,-1200.0,0.00018977,2]
[387189283,1758625832488,-590.23812601,0.00018978,2]
[387189284,1758625832498,-7246.87925937,0.00018978,2]
[387189285,1758625832508,-34732.9545661,0.00018987,2]
[387189286,1758625832520,-113.8296256,0.00018987,2]
[387189287,1758625832534,-14378.28496998,0.00018988,2]
[387189289,1758625832557,-30306.25056843,0.00018988,2]
[387189291,1758625832566,-264.16910213,0.00018988,2]
[387189293,1758625832575,-500.0,0.00018988,2]
[387189295,1758625832584,-500.0,0.00018988,2]
[387189297,1758625832595,-500.0,0.00018988,2]
[387189299,1758625832604,-500.0,0.00018988,2]
[387189300,1758625832614,-256.84822781,0.00018988,2]
[387189301,1758625832623,-204.33281099,0.00018988,2]
[387189302,1758625832633,-500.0,0.00018988,2]
[387189303,1758625832642,-500.0,0.00018988,2]
[387189304,1758625832652,-500.0,0.00018989,2]
[387189305,1758625832662,-312.70376104,0.00018989,2]
[387189306,1758625832671,-500.0,0.00018989,2]
[387189307,1758625832682,-500.0,0.00018989,2]
[387189308,1758625832692,-500.0,0.00018989,2]
[387189309,1758625832701,-500.0,0.00018989,2]
[387189310,1758625832710,-236.44280784,0.00018989,2]
[387189311,1758625832720,-263.55719216,0.00018989,2]
[387189312,1758625832727,-500.0,0.00018989,2]
[387189313,1758625832734,-500.0,0.00018989,2]
[387189314,1758625832741,-221.11280784,0.00018989,2]
[387189322,1758625838388,-189.37031233,0.00018987,2]
[387189323,1758625838399,-278.88719216,0.00018989,2]
[387189324,1758625838408,-144.79386016,0.00018989,2]
[387189327,1758625840119,-277.55444643,0.00018989,2]
[387189583,1758625843256,-77.65169341,0.00018989,2]
[387189585,1758625843266,-500.0,0.00018989,2]
[387189587,1758625843275,-500.0,0.00018989,2]
[387189589,1758625843285,-500.0,0.00018989,2]
[387189591,1758625843294,-500.0,0.00018989,2]
[387189593,1758625843303,-500.0,0.00018989,2]
[387189595,1758625843313,-500.0,0.00018989,2]
[387189597,1758625843322,-500.0,0.00018989,2]
[387189599,1758625843331,-500.0,0.00018989,2]
[387189601,1758625843341,-500.0,0.00018989,2]
[387189603,1758625843350,-493.28290788,0.00018989,2]
[387189605,1758625843360,-500.0,0.00018989,2]
[387189607,1758625843370,-500.0,0.00018989,2]
[387189609,1758625843379,-37.18287016,0.0001899,2]
[387189701,1758625846180,-7588.57533247,0.0001899,2]
[387189702,1758625846234,-2200.0,0.0001899,2]
[387189703,1758625846352,-13732.28503589,0.0001899,2]
[387189704,1758625846364,-1977.99539939,0.0001899,2]
[387189705,1758625846376,-4417.07460061,0.0001899,2]
[387189706,1758626245651,-157.269293,0.00018008,2]
[387189707,1758626245680,-2044.64341672,0.0001889,2]
[387189708,1758626245708,-300.0,0.00018976,2]
[387189709,1758626245738,-1200.0,0.00018976,2]
[387189710,1758626245767,-300.0,0.00018977,2]
[387189711,1758626245795,-300.0,0.00018977,2]
[387189712,1758626245824,-300.0,0.00018977,2]
[387189713,1758626245852,-300.0,0.00018977,2]
[387189714,1758626375934,-493.67027336,0.0001889,2]
[387189715,1758626376154,-10000.01,0.0001889,2]
[387189716,1758626376301,-10000.01,0.0001889,2]
[387189717,1758626376425,-10000.01,0.0001889,2]
[387189718,1758626376552,-10000.01,0.0001889,2]
[387189719,1758626376683,-10000.01,0.0001889,2]
[387189720,1758626377003,-10000.01,0.0001889,2]
[387189721,1758626377130,-10000.01,0.0001889,2]
[387189722,1758626377273,-10000.01,0.0001889,2]
[387189723,1758626377431,-10000.01,0.0001889,2]
[387189724,1758626385821,-10000.01,0.0001889,2]
[387189725,1758626385943,-10000.01,0.0001889,2]
[387189726,1758626386071,-10000.01,0.0001889,2]
[387189727,1758626386305,-10000.01,0.0001889,2]
[387189728,1758626386364,-10000.01,0.0001889,2]
[387189729,1758626386487,-10000.01,0.0001889,2]
[387189730,1758626386627,-10000.01,0.0001889,2]
[387189731,1758626386766,-10000.01,0.0001889,2]
[387189732,1758626386887,-10000.01,0.0001889,2]
[387189733,1758626387013,-10000.01,0.0001889,2]
[387189734,1758626395750,-10000.01,0.0001889,2]
[387189735,1758626395857,-10000.01,0.0001889,2]
[387189736,1758626395992,-10000.01,0.0001889,2]
[387189737,1758626396112,-10000.01,0.0001889,2]
[387189738,1758626396232,-10000.01,0.0001889,2]
[387189739,1758626396339,-10000.01,0.0001889,2]
[387189740,1758626396489,-10000.01,0.0001889,2]
[387189741,1758626396597,-10000.01,0.0001889,2]
[387189742,1758626396728,-10000.01,0.0001889,2]
[387189743,1758626396976,-10000.01,0.0001889,2]
[387189744,1758626405756,-300.0,0.00018889,2]
[387189745,1758626405785,-300.0,0.00018889,2]
[387189746,1758626405814,-300.0,0.00018889,2]
[387189747,1758626405841,-300.0,0.00018889,2]
[387189748,1758626405870,-300.0,0.00018889,2]
[387189749,1758626405964,-7000.01,0.0001889,2]
[387189750,1758626405989,-10000.01,0.0001889,2]
[387189751,1758626406022,-10000.01,0.0001889,2]
[387189752,1758626406155,-10000.01,0.0001889,2]
[387189753,1758626415807,-1200.0,0.00018889,2]
[387189754,1758626415850,-7600.01,0.0001889,2]
[387189755,1758626418693,-264.12985467,0.00018051,2]
[387189756,1758626423518,-290.63455299,0.00018051,2]
[387189757,1758626427621,-274.18604221,0.00018051,2]
[387189758,1758626431425,-418.6779014,0.00018051,2]
[387189759,1758626435166,-168.18166989,0.0001805,2]
[387189760,1758626435188,-231.50947338,0.00018051,2]
[387189761,1758626436825,-463.01089465,0.00018051,2]
[387189762,1758626438883,-198.807937,0.00018051,2]
[387189763,1758626442676,-167.363638,0.00018051,2]
[387189764,1758626587402,501.3169264,0.00017973,2]
[387189765,1758626616788,8809.6731511,0.00017936,2]
[387189773,1758626835187,250.0,0.00017638,2]
[387189775,1758626857310,-180.40773396,0.00018028,2]
[387189778,1758626859891,-35.81826604,0.00018028,2]
[387189779,1758626859924,-178.11882008,0.00018032,2]
[387189781,1758626862098,-295.615232,0.00018032,2]
[387189802,1758626872163,439.0199225,0.00018,2]
[387189803,1758626872191,5769.51801813,0.00018,2]
[387189806,1758626891709,-158.05354746,0.00018032,2]
[387189808,1758626914666,-334.438766,0.00018032,2]
[387189809,1758626915890,4230.49198187,0.00017,2]
[387189810,1758626915913,10000.01,0.00017,2]
[387189811,1758626915939,10000.01,0.00017,2]
[387189812,1758626915961,10000.01,0.00017,2]
[387189813,1758626915982,10000.01,0.00017,2]
[387189814,1758626916003,7514.42402908,0.00017,2]
[387189815,1758626917250,-168.531062,0.00018032,2]
[387189816,1758626919946,-233.23475398,0.00018032,2]
[387189817,1758626920157,990.78929818,0.00025,120]
[387189818,1758626923652,-297.91568634,0.00018032,2]
[387189819,1758626925700,2485.58597092,0.0001,2]
[387189820,1758626925729,10000.01,0.0001,2]
[387189821,1758626925751,5283.90625208,0.0001,2]
[387189822,1758626926953,4716.10374792,0.0001,2]
[387189823,1758626926974,10000.01,0.0001,2]
[387189824,1758626926996,10000.01,0.0001,2]
[387189825,1758626927020,9283.87625208,0.0001,2]
[387189827,1758626927155,5000.0,0.0002011,13]
[387189828,1758626927415,716.13374792,0.0001,2]
[387189829,1758626927438,1013.29465464,0.0001,2]
[387189831,1758626927945,-212.61719885,0.00018032,2]
[387189833,1758626930175,-203.781234,0.00018032,2]
[387189834,1758626932289,-174.25551148,0.00018032,2]
[387189835,1758626934624,-238.06291388,0.00018032,2]
[387189836,1758626937836,-200.80108424,0.00018032,2]
[387189837,1758626940689,-209.83653977,0.00018032,2]
[387189838,1758626942865,5000.0,0.0002011,13]
[387189839,1758626942896,-190.657059,0.00018032,2]
[387189840,1758626949223,-265.00585586,0.00018032,2]
[387189841,1758626951045,5000.0,0.0002011,13]
[387189842,1758626956742,-176.04497273,0.00018032,2]
[387189843,1758626961631,-195.39741264,0.00018032,2]
[387189844,1758626965432,-361.30042679,0.00018032,2]
[387189845,1758626967934,5000.0,0.0002011,13]
[387189846,1758626968240,-195.11545431,0.00018032,2]
[387189847,1758626969901,-248.47899204,0.00018032,2]
[387189848,1758626973552,-268.35430913,0.00018032,2]
[387189849,1758626975118,-231.06017,0.00018032,2]
[387189850,1758626976628,-696.04482566,0.00018032,2]
[387189851,1758626976871,5000.0,0.0002011,13]
[387189852,1758626979321,-153.53110897,0.00018032,2]
[387189853,1758626983688,-343.21585672,0.00018032,2]
[387189854,1758626985803,-111.80403517,0.00018032,2]
[387189855,1758626985825,-177.59204327,0.00018421,2]
[387189856,1758627024374,9069.8919532,0.00017855,2]
[387189890,1758627032489,-175.0,0.00018521,2]
[387189893,1758627032498,-177.59204326,0.00018538,2]
[387189895,1758627032508,-117.9289368,0.00018602,2]
[387189897,1758627032520,-500.0,0.00018602,2]
[387189900,1758627032544,-120.28667092,0.00018602,2]
[387189902,1758627032554,-175.0,0.00018605,2]
[387189904,1758627032564,-177.59204326,0.00018656,2]
[387189906,1758627032573,-410.56786048,0.00018764,2]
[387189908,1758627032583,-177.59204326,0.00018773,2]
[387189932,1758627032706,-217.6275048,0.0001879,2]
[387189935,1758627032716,-175.0,0.00018818,2]
[387189937,1758627032727,-159.0659469,0.00018884,2]
[387189939,1758627032736,-177.59204326,0.0001889,2]
[387189941,1758627032745,-153.24592102,0.0001889,2]
[387189943,1758627032755,-151.0,0.0001889,2]
[387189945,1758627032764,-151.0,0.0001889,2]
[387189947,1758627032774,-166.95523004,0.0001889,2]
[387189949,1758627032783,-2545.79898455,0.0001889,2]
[387189951,1758627032793,-1200.0,0.00018898,2]
[387189953,1758627032802,-240.0,0.00018899,2]
[387189955,1758627032813,-220.0,0.00018899,2]
[387189956,1758627032823,-300.0,0.00018899,2]
[387189957,1758627032833,-300.0,0.00018899,2]
[387189958,1758627032842,-300.0,0.00018899,2]
[387189959,1758627032851,-157.33263546,0.000189,2]
[387189960,1758627032861,-157.33263546,0.000189,2]
[387189961,1758627032871,-157.33263546,0.000189,2]
[387189962,1758627032881,-193.2770898,0.000189,2]
[387189963,1758627032891,-296.6276561,0.000189,2]
[387189964,1758627032905,-162.1839521,0.000189,2]
[387189965,1758627032915,-585.9861618,0.000189,2]
[387189966,1758627032926,-175.0,0.00018928,2]
[387189967,1758627032936,-175.0,0.00018942,2]
[387189968,1758627032947,-175.0,0.00018955,2]
[387189969,1758627032956,-175.0,0.00018968,2]
[387189970,1758627032965,-418.38215446,0.00018978,2]
[387189979,1758627038381,-666.0,0.00018008,2]
[387189980,1758627038392,-8131.95499543,0.00018978,2]
[387189981,1758627038418,-1787.65,0.00018978,2]
[387189982,1758627038449,-1500.47423053,0.00018978,2]
[387189983,1758627038461,-1703.56176263,0.00018978,2]
[387189984,1758627038472,-390.19957396,0.00018978,2]
[387189985,1758627038489,-4698.04128397,0.00018978,2]
[387189986,1758627039357,-291.45560762,0.00018008,2]
[387190008,1758627040475,-1511.21626198,0.00018008,2]
[387190010,1758627040485,-500.0,0.00018977,2]
[387190012,1758627040494,-500.0,0.00018977,2]
[387190014,1758627040504,-500.0,0.00018977,2]
[387190016,1758627040513,-500.0,0.00018977,2]
[387190018,1758627040522,-500.0,0.00018977,2]
[387190019,1758627040531,-500.0,0.00018977,2]
[387190021,1758627040541,-500.0,0.00018977,2]
[387190023,1758627040550,-500.0,0.00018977,2]
[387190025,1758627040559,-500.0,0.00018977,2]
[387190027,1758627040568,-500.0,0.00018977,2]
[387190029,1758627040577,-335.94383333,0.00018977,2]
[387190031,1758627040586,-500.0,0.00018977,2]
[387190033,1758627040595,-500.0,0.00018977,2]
[387190034,1758627040604,-500.0,0.00018977,2]
[387190036,1758627040614,-500.0,0.00018977,2]
[387190038,1758627040623,-500.0,0.00018977,2]
[387190040,1758627040632,-500.0,0.00018977,2]
[387190042,1758627040641,-500.0,0.00018977,2]
[387190044,1758627040651,-153.36382982,0.00018977,2]
[387190046,1758627040660,-207.58347293,0.00018977,2]
[387190048,1758627040671,-426.70645257,0.00018977,2]
[387190050,1758627040680,-500.0,0.00018977,2]
[387190052,1758627040689,-500.0,0.00018977,2]
[387190054,1758627040702,-500.0,0.00018977,2]
[387190057,1758627040717,-29308.83324821,0.00018978,2]
[387190059,1758627040731,-181.08010149,0.00018979,2]
[387190061,1758627040744,-1000.0,0.00018988,2]
[387190064,1758627040755,-1000.0,0.00018988,2]
[387190066,1758627040769,-1000.0,0.00018988,2]
[387190068,1758627040782,-1000.0,0.00018988,2]
[387190071,1758627040796,-1000.0,0.00018988,2]
[387190073,1758627040809,-1000.0,0.00018989,2]
[387190075,1758627040823,-1000.0,0.00018989,2]
[387190078,1758627040839,-1000.0,0.00018989,2]
[387190080,1758627040852,-1000.0,0.00018989,2]
[387190082,1758627040865,-211.04149138,0.00018989,2]
[387190085,1758627040879,-218.89263272,0.00018989,2]
[387190087,1758627040891,-500.0,0.00018989,2]
[387190088,1758627040911,-500.0,0.00018989,2]
[387190089,1758627040924,-500.0,0.00018989,2]
[387190090,1758627040937,-412.95815392,0.00018989,2]
[387190091,1758627040948,-500.0,0.00018989,2]
[387190093,1758627040959,-500.0,0.00018989,2]
[387190094,1758627040972,-500.0,0.00018989,2]
[387190096,1758627040985,-500.0,0.00018989,2]
[387190097,1758627040997,-500.0,0.00018989,2]
[387190098,1758627041012,-500.0,0.00018989,2]
[387190099,1758627041026,-500.0,0.00018989,2]
[387190100,1758627041040,-500.0,0.00018989,2]
[387190101,1758627041053,-24047.26229472,0.0001899,2]
[387190116,1758627046530,-45999.62446676,0.0001899,2]
[387190117,1758627046540,-500.0,0.0001899,2]
[387190118,1758627046550,-483.562,0.00019064,2]
[387190119,1758627046559,-509.13183978,0.00019078,2]
[387190120,1758627046568,-5691.57767252,0.00019078,2]
[387190121,1758627046578,-4820.51161698,0.00019078,2]
[387190122,1758627046588,-318.31,0.00019119,2]
[387190123,1758627046598,-167.99,0.00019119,2]
[387190124,1758627046607,-4584.0,0.00019122,2]
[387190125,1758627046616,-175.0,0.00019131,2]
[387190126,1758627046625,-633.7,0.00019168,3]
[387190127,1758627046635,-316.85,0.00019168,3]
[387190128,1758627046644,-158.43,0.00019168,3]
[387190129,1758627046653,-475.3,0.00019168,3]
[387190130,1758627046663,-501.45936657,0.00019173,2]
[387190131,1758627046672,-500.0,0.00019173,2]
[387190132,1758627046681,-500.0,0.00019173,2]
[387190133,1758627046690,-500.0,0.00019173,2]
[387190134,1758627046699,-500.0,0.00019173,2]
[387190135,1758627046708,-151.0,0.00019177,2]
[387190136,1758627046718,-500.0,0.00019177,2]
[387190138,1758627046727,-151.0,0.00019177,2]
[387190140,1758627046737,-151.0,0.00019177,2]
[387190142,1758627046747,-480.0,0.00019178,2]
[387190143,1758627046756,-480.0,0.00019178,2]
[387190144,1758627046766,-480.0,0.00019178,2]
[387190145,1758627046776,-480.0,0.00019178,2]
[387190146,1758627046785,-480.0,0.00019178,2]
[387190147,1758627046795,-182.02479836,0.00019178,2]
[387190148,1758627046804,-492.02703179,0.00019178,2]
[387190149,1758627046813,-480.0,0.00019178,2]
[387190150,1758627046822,-491.3622693,0.00019178,2]
[387190151,1758627046831,-480.0,0.00019178,2]
[387190152,1758627046840,-489.62163808,0.00019178,2]
[387190153,1758627046850,-480.0,0.00019178,2]
[387190154,1758627046859,-480.0,0.00019178,2]
[387190155,1758627046869,-480.0,0.00019178,2]
[387190156,1758627046878,-487.24757748,0.00019178,2]
[387190157,1758627046887,-480.0,0.00019178,2]
[387190158,1758627046901,-480.0,0.00019178,2]
[387190159,1758627046911,-480.0,0.00019178,2]
[387190160,1758627046920,-480.0,0.00019178,2]
[387190161,1758627046930,-480.0,0.00019178,2]
[387190162,1758627046941,-480.0,0.00019178,2]
[387190163,1758627046950,-485.71689908,0.00019178,2]
[387190164,1758627046960,-480.0,0.00019178,2]
[387190165,1758627046971,-486.03788948,0.00019178,2]
[387190166,1758627046981,-365.69430504,0.00019178,2]
[387190167,1758627046991,-475.33316929,0.00019178,2]
[387190168,1758627047002,-480.0,0.00019178,2]
[387190169,1758627047012,-480.0,0.00019178,2]
[387190170,1758627047021,-480.0,0.00019178,2]
[387190171,1758627047032,-480.0,0.00019178,2]
[387190172,1758627047041,-500.0,0.00019178,2]
[387190173,1758627047051,-480.0,0.00019178,2]
[387190174,1758627047060,-719.21,0.00019178,2]
[387190175,1758627047069,-480.0,0.00019178,2]
[387190176,1758627047079,-480.0,0.00019178,2]
[387190177,1758627047088,-403.62387303,0.00019178,2]
[387190178,1758627047098,-480.0,0.00019178,2]
[387190179,1758627047108,-480.0,0.00019178,2]
[387190180,1758627047117,-483.58764596,0.00019178,2]
[387190181,1758627047127,-480.0,0.00019178,2]
[387190182,1758627047136,-485.75844099,0.00019178,2]
[387190183,1758627047145,-489.55755242,0.00019178,2]
[387190184,1758627047155,-435.67285477,0.00019178,2]
[387190185,1758627047165,-487.05152714,0.00019178,2]
[387190186,1758627047174,-480.0,0.00019178,2]
[387190187,1758627047183,-480.0,0.00019178,2]
[387190188,1758627047193,-480.0,0.00019178,2]
[387190189,1758627047202,-480.0,0.00019178,2]
[387190190,1758627047211,-480.0,0.00019178,2]
[387190191,1758627047221,-480.0,0.00019178,2]
[387190192,1758627047230,-153.668486,0.00019178,2]
[387190193,1758627047240,-480.0,0.00019178,2]
[387190194,1758627047249,-480.0,0.00019178,2]
[387190195,1758627047258,-480.0,0.00019178,2]
[387190196,1758627047267,-480.0,0.00019178,2]
[387190197,1758627047276,-480.0,0.00019178,2]
[387190198,1758627047285,-480.0,0.00019178,2]
[387190199,1758627047295,-480.0,0.00019178,2]
[387190200,1758627047304,-621.33,0.00019178,2]
[387190201,1758627047313,-480.0,0.00019178,2]
[387190202,1758627047323,-480.0,0.00019178,2]
[387190203,1758627047332,-486.60723832,0.00019178,2]
[387190204,1758627047341,-211.57906543,0.00019178,2]
[387190205,1758627047350,-480.0,0.00019178,2]
[387190206,1758627047360,-480.0,0.00019178,2]
[387190207,1758627047370,-491.52837849,0.00019178,2]
[387190208,1758627047380,-480.0,0.00019178,2]
[387190209,1758627047389,-480.0,0.00019178,2]
[387190210,1758627047398,-480.0,0.00019178,2]
[387190211,1758627047408,-152.023701,0.00019178,2]
[387190212,1758627047417,-480.0,0.00019178,2]
[387190213,1758627047426,-480.0,0.00019178,2]
[387190214,1758627047435,-151.0,0.00019178,2]
[387190215,1758627047444,-480.0,0.00019178,2]
[387190216,1758627047453,-488.50562373,0.00019178,2]
[387190217,1758627047463,-480.0,0.00019178,2]
[387190218,1758627047472,-480.0,0.00019178,2]
[387190219,1758627047481,-480.0,0.00019178,2]
[387190220,1758627047490,-609.93,0.00019178,2]
[387190221,1758627047499,-170.83875381,0.00019178,2]
[387190222,1758627047509,-480.0,0.00019178,2]
[387190223,1758627047518,-480.0,0.00019178,2]
[387190224,1758627047527,-480.0,0.00019178,2]
[387190225,1758627047537,-480.0,0.00019178,2]
[387190226,1758627047546,-480.0,0.00019178,2]
[387190227,1758627047555,-480.0,0.00019178,2]
[387190228,1758627047564,-480.0,0.00019178,2]
[387190229,1758627047574,-480.0,0.00019178,2]
[387190230,1758627047583,-275.83967304,0.00019178,2]
[387190231,1758627047593,-480.0,0.00019178,2]
[387190232,1758627047602,-408.70781631,0.00019178,2]
[387190233,1758627047612,-480.0,0.00019178,2]
[387190234,1758627047621,-486.57997511,0.00019178,2]
[387190235,1758627047631,-480.0,0.00019178,2]
[387190236,1758627047641,-480.0,0.00019178,2]
[387190237,1758627047650,-480.0,0.00019178,2]
[387190238,1758627047660,-151.0,0.00019178,2]
[387190239,1758627047669,-480.0,0.00019178,2]
[387190240,1758627047679,-151.0,0.00019178,2]
[387190241,1758627047688,-480.0,0.00019178,2]
[387190242,1758627047697,-480.0,0.00019178,2]
[387190243,1758627047706,-480.0,0.00019178,2]
[387190244,1758627047716,-480.0,0.00019178,2]
[387190245,1758627047726,-480.0,0.00019178,2]
[387190246,1758627047735,-480.0,0.00019178,2]
[387190247,1758627047744,-335.00843238,0.00019178,2]
[387190248,1758627047753,-483.91208513,0.00019178,2]
[387190249,1758627047762,-480.0,0.00019178,2]
[387190250,1758627047772,-480.0,0.00019178,2]
[387190251,1758627047781,-484.37144901,0.00019178,2]
[387190252,1758627047790,-484.4045083,0.00019178,2]
[387190253,1758627047799,-756.94,0.00019178,2]
[387190254,1758627047809,-480.0,0.00019178,2]
[387190255,1758627047818,-480.0,0.00019178,2]
[387190256,1758627047827,-480.0,0.00019178,2]
[387190257,1758627047836,-260.74643391,0.00019178,2]
[387190258,1758627047846,-480.0,0.00019178,2]
[387190259,1758627047854,-489.34696326,0.00019178,2]
[387190260,1758627047864,-151.0,0.00019178,2]
[387190261,1758627047874,-486.90551815,0.00019178,2]
[387190262,1758627047883,-501.38422067,0.00019178,2]
[387190263,1758627047893,-480.0,0.00019178,2]
[387190264,1758627047906,-480.0,0.00019178,2]
[387190265,1758627047916,-480.0,0.00019178,2]
[387190266,1758627047926,-480.0,0.00019178,2]
[387190267,1758627047935,-480.0,0.00019178,2]
[387190268,1758627047946,-490.25574813,0.00019178,2]
[387190269,1758627047956,-480.0,0.00019178,2]
[387190270,1758627047965,-480.0,0.00019178,2]
[387190271,1758627047976,-480.0,0.00019178,2]
[387190272,1758627047986,-480.0,0.00019178,2]
[387190273,1758627047995,-480.0,0.00019178,2]
[387190274,1758627048005,-480.0,0.00019178,2]
[387190275,1758627048014,-486.51937062,0.00019178,2]
[387190276,1758627048024,-480.0,0.00019178,2]
[387190277,1758627048033,-480.0,0.00019178,2]
[387190278,1758627048043,-480.0,0.00019178,2]
[387190279,1758627048053,-486.81814375,0.00019178,2]
[387190280,1758627048063,-480.0,0.00019178,2]
[387190281,1758627048073,-480.0,0.00019178,2]
[387190282,1758627048082,-507.1,0.00019178,2]
[387190283,1758627048092,-480.0,0.00019178,2]
[387190284,1758627048102,-480.0,0.00019178,2]
[387190285,1758627048111,-1735.33,0.00019178,2]
[387190286,1758627048121,-316.89208836,0.00019178,2]
[387190287,1758627048130,-480.0,0.00019178,2]
[387190288,1758627048140,-480.0,0.00019178,2]
[387190289,1758627048150,-480.0,0.00019178,2]
[387190290,1758627048160,-480.0,0.00019178,2]
[387190291,1758627048169,-5671.44,0.00019178,2]
[387190292,1758627048179,-1196.37,0.00019178,2]
[387190293,1758627048189,-727.75,0.00019178,2]
[387190294,1758627048200,-480.0,0.00019178,2]
[387190295,1758627048209,-480.0,0.00019178,2]
[387190296,1758627048219,-480.0,0.00019178,2]
[387190297,1758627048229,-480.0,0.00019178,2]
[387190298,1758627048239,-943.88,0.00019178,2]
[387190299,1758627048248,-480.0,0.00019178,2]
[387190300,1758627048258,-151.0,0.00019178,2]
[387190301,1758627048267,-151.0,0.00019178,2]
[387190302,1758627048276,-480.0,0.00019178,2]
[387190303,1758627048286,-487.52327746,0.00019178,2]
[387190304,1758627048295,-480.0,0.00019178,2]
[387190305,1758627048304,-916.96,0.00019178,2]
[387190306,1758627048314,-480.0,0.00019178,2]
[387190307,1758627048324,-480.0,0.00019178,2]
[387190308,1758627048335,-480.0,0.00019178,2]
[387190309,1758627048346,-480.0,0.00019178,2]
[387190310,1758627048355,-480.0,0.00019178,2]
[387190311,1758627048365,-480.0,0.00019178,2]
[387190312,1758627048375,-480.0,0.00019178,2]
[387190313,1758627048385,-1120.88,0.00019178,2]
[387190314,1758627048394,-480.0,0.00019178,2]
[387190315,1758627048404,-480.0,0.00019178,2]
[387190316,1758627048413,-480.0,0.00019178,2]
[387190317,1758627048423,-480.0,0.00019178,2]
[387190318,1758627048433,-480.0,0.00019178,2]
[387190319,1758627048443,-480.0,0.00019178,2]
[387190320,1758627048454,-480.0,0.00019178,2]
[387190321,1758627048464,-480.0,0.00019178,2]
[387190322,1758627048473,-489.38110512,0.00019178,2]
[387190323,1758627048483,-9123.08,0.00019178,2]
[387190324,1758627048492,-480.0,0.00019178,2]
[387190325,1758627048502,-480.0,0.00019178,2]
[387190326,1758627048513,-480.0,0.00019178,2]
[387190327,1758627048620,-423.32795872,0.00019178,2]
[387190328,1758627048653,-480.0,0.00019178,2]
[387190329,1758627048664,-480.0,0.00019178,2]